fUSD/lending_fUSD_20250421
["ID","MTS","AMOUNT","RATE_DAILY","PERIOD"]
[358568781,1745269201457,-743.09,0.00053698,120]
[358568782,1745269201493,-1183.26,0.00053698,120]
[358568783,1745269201531,-579.09,0.00053698,120]
[358568784,1745269201568,-947.57,0.00053698,120]
[358568785,1745269201607,-1099.51,0.00053698,120]
[358568786,1745269201646,-904.67,0.00053698,120]
[358568787,1745269201681,-280.8,0.00053698,120]
[358568788,1745269201718,-1533.1,0.00053698,120]
[358568789,1745269201755,-717.75,0.00053698,120]
[358568790,1745269201791,-500.0,0.00053698,120]
[358568791,1745269201829,-729.68,0.00053698,120]
[358568792,1745269202071,-601.4,0.00053698,120]
[358568793,1745269202109,-779.43,0.00053698,120]
[358568794,1745269202146,-1738.61,0.00053698,120]
[358568795,1745269202182,-706.3,0.00053698,120]
[358568796,1745269202218,-500.0,0.00053698,120]
[358568797,1745269202254,-612.25,0.00053698,120]
[358568798,1745269202290,-1772.65,0.00053698,120]
[358568799,1745269202325,-501.84,0.00053698,120]
[358568800,1745269202361,-1438.84,0.00053698,120]
[358568801,1745269202403,-927.9,0.00053698,120]
[358568802,1745269202443,-1567.41,0.00053698,120]
[358568803,1745269202482,-765.04,0.00053698,120]
[358568804,1745269202521,-1636.3,0.00053698,120]
[358568805,1745269202561,-1871.84,0.00053698,120]
[358568806,1745269202598,-500.0,0.00053698,120]
[358568807,1745269202633,-658.02,0.00053698,120]
[358568808,1745269202670,-1100.31,0.00053698,120]
[358568809,1745269202706,-1543.41,0.00053698,120]
[358568810,1745269202744,-500.0,0.00053698,120]
[358568811,1745269202779,-2906.42,0.00053698,120]
[358568812,1745269202816,-621.72,0.00053698,120]
[358568813,1745269202852,-616.38,0.00053698,120]
[358568814,1745269202887,-829.97,0.00053698,120]
[358568815,1745269202924,-506.68,0.00053698,120]
[358568816,1745269202960,-1256.12,0.00053698,120]
[358568817,1745269202996,-1178.06,0.00053698,120]
[358568818,1745269203037,-1134.03,0.00053698,120]
[358568819,1745269203079,-585.8,0.00053698,120]
[358568820,1745269203123,-821.12,0.00053698,120]
[358568821,1745269203166,-822.93,0.00053698,120]
[358568822,1745269203208,-1335.52,0.00053698,120]
[358568823,1745269203250,-1048.75,0.00053698,120]
[358568824,1745269203294,-1275.11,0.00053698,120]
[358568825,1745269203335,-816.95,0.00053698,120]
[358568826,1745269203378,-1659.14,0.00053698,120]
[358568827,1745269203420,-500.0,0.00053698,120]
[358568828,1745269203463,-583.75,0.00053698,120]
[358568829,1745269203504,-1122.27,0.00053698,120]
[358568830,1745269203546,-1948.41,0.00053698,120]
[358568831,1745269203589,-655.96,0.00053698,120]
[358568832,1745269203631,-762.02,0.00053698,120]
[358568833,1745269203676,-720.4,0.00053698,120]
[358568834,1745269203718,-248.73711747,0.00053698,120]
[358568835,1745269203759,-500.0,0.00053698,120]
[358568836,1745269203802,-941.01,0.00053698,120]
[358568837,1745269203845,-645.89,0.00053698,120]
[358568838,1745269203887,-1158.5,0.00053698,120]
[358568839,1745269203929,-500.0,0.00053698,120]
[358568840,1745269203971,-973.17,0.00053698,120]
[358568841,1745269204015,-901.45,0.00053698,120]
[358568842,1745269204059,-997.67,0.00053698,120]
[358568843,1745269204103,-783.77,0.00053698,120]
[358568844,1745269204148,-3240.43,0.00053698,120]
[358568845,1745269204194,-1596.74,0.00053698,120]
[358568846,1745269204237,-919.49,0.00053698,120]
[358568847,1745269204280,-321.79854536,0.00053698,120]
[358568848,1745269204323,-804.59,0.00053698,120]
[358568849,1745269204368,-877.83,0.00053698,120]
[358568850,1745269204412,-1289.89,0.00053698,120]
[358568851,1745269204457,-1393.67,0.00053698,120]
[358568852,1745269204501,-864.57,0.00053698,120]
[358568853,1745269204544,-1022.68,0.00053698,120]
[358568854,1745269204587,-1668.15,0.00053698,120]
[358568855,1745269204630,-859.56,0.00053698,120]
[358568856,1745269204672,-1952.74,0.00053698,120]
[358568857,1745269204714,-511.37,0.00053698,120]
[358568858,1745269204756,-662.83,0.00053698,120]
[358568859,1745269204797,-574.9,0.00053698,120]
[358568860,1745269204839,-1348.97,0.00053698,120]
[358568861,1745269204879,-561.55,0.00053698,120]
[358568862,1745269204920,-996.82,0.00053698,120]
[358568863,1745269204962,-1058.05,0.00053698,120]
[358568864,1745269205003,-2581.69,0.00053698,120]
[358568865,1745269205045,-500.0,0.00053698,120]
[358568866,1745269205086,-1410.47,0.00053698,120]
[358568867,1745269205127,-508.66,0.00053698,120]
[358568868,1745269205372,-743.94,0.00053698,120]
[358568869,1745269205416,-1494.95,0.00053698,120]
[358568870,1745269205460,-955.73,0.00053698,120]
[358568871,1745269205505,-618.02,0.00053698,120]
[358568872,1745269205548,-1053.78,0.00053698,120]
[358568873,1745269205589,-1074.12,0.00053698,120]
[358568874,1745269205638,-1020.13,0.00053698,120]
[358568875,1745269205692,-674.89,0.00053698,120]
[358568876,1745269205732,-1637.73,0.00053698,120]
[358568877,1745269205772,-889.4,0.00053698,120]
[358568878,1745269205812,-500.0,0.00053698,120]
[358568879,1745269205853,-1570.7,0.00053698,120]
[358568880,1745269205894,-2220.57,0.00053698,120]
[358568881,1745269205934,-2278.19,0.00053698,120]
[358568882,1745269205974,-1605.45,0.00053698,120]
[358568883,1745269206014,-1339.26,0.00053698,120]
[358568884,1745269206055,-500.0,0.00053698,120]
[358568885,1745269206097,-1056.06,0.00053698,120]
[358568886,1745269206136,-2998.83,0.00053698,120]
[358568887,1745269206177,-831.47,0.00053698,120]
[358568888,1745269206217,-2289.63,0.00053698,120]
[358568889,1745269206258,-668.65,0.00053698,60]
[358568890,1745269206301,-1451.0,0.00053698,120]
[358568891,1745269206340,-1561.76,0.00053698,120]
[358568892,1745269206379,-891.42,0.00053698,120]
[358568893,1745269206418,-578.81,0.00053698,120]
[358568894,1745269206464,-238.57,0.000537,54]
[358568895,1745269206513,-238.57,0.000537,54]
[358568896,1745269206561,-238.57,0.000537,54]
[358568897,1745269206608,-238.57,0.000537,54]
[358568898,1745269206653,-238.57,0.000537,54]
[358568899,1745269206700,-238.57,0.000537,54]
[358568900,1745269206749,-238.57,0.000537,54]
[358568901,1745269206796,-238.57,0.000537,54]
[358568902,1745269206842,-238.57,0.000537,54]
[358568903,1745269206888,-238.57,0.000537,54]
[358568904,1745269206933,-238.57,0.000537,54]
[358568905,1745269206981,-238.57,0.000537,54]
[358568906,1745269207026,-238.57,0.000537,54]
[358568907,1745269207071,-238.57,0.000537,54]
[358568908,1745269207118,-238.57,0.000537,54]
[358568909,1745269207164,-238.57,0.000537,54]
[358568910,1745269207209,-238.57,0.000537,54]
[358568911,1745269207255,-238.57,0.000537,54]
[358568912,1745269207305,-238.57,0.000537,54]
[358568913,1745269207355,-238.57,0.000537,54]
[358568914,1745269207406,-238.57,0.000537,54]
[358568915,1745269207455,-238.57,0.000537,54]
[358568916,1745269207502,-238.57,0.000537,54]
[358568917,1745269207551,-238.57,0.000537,54]
[358568918,1745269207592,-851.0,0.000539,120]
[358568919,1745269207632,-194.11105237,0.00053972,32]
[358568920,1745269207674,-50000.0,0.00054,54]
[358568921,1745269207713,-900.0,0.00054,55]
[358568922,1745269207755,-200.0,0.00054,96]
[358568923,1745269207795,-637.30716016,0.00054,120]
[358568924,1745269207835,-1464.82985884,0.00054,120]
[358568925,1745269207875,-500.0,0.00054,120]
[358568926,1745269207916,-200.0,0.00054,120]
[358568927,1745269207954,-200.0,0.00054,96]
[358568928,1745269207993,-200.0,0.00054,96]
[358568929,1745269208033,-150.0,0.00054107,120]
[358568930,1745269208073,-160.633239,0.00054246,120]
[358568931,1745269208112,-629.509786,0.00054246,120]
[358568932,1745269208153,-571.892923,0.00054246,120]
[358568933,1745269208193,-1890.77893,0.00054246,120]
[358568934,1745269208232,-847.27,0.00054246,120]
[358568935,1745269208270,-980.71,0.00054246,120]
[358568936,1745269208312,-2474.26,0.00054246,120]
[358568937,1745269208353,-2340.33,0.00054246,120]
[358568938,1745269208394,-710.84,0.00054246,120]
[358568939,1745269208434,-519.36,0.00054246,120]
[358568940,1745269208474,-461.42,0.00054246,120]
[358568941,1745269208717,-858.69,0.00054246,120]
[358568942,1745269208759,-1419.16,0.00054246,120]
[358568943,1745269208798,-500.0,0.00054246,120]
[358568944,1745269208836,-1001.34,0.00054246,120]
[358568945,1745269208874,-500.0,0.00054246,120]
[358568946,1745269208914,-604.48,0.00054246,120]
[358568947,1745269208951,-1198.33,0.00054246,120]
[358568948,1745269208990,-951.19,0.00054246,120]
[358568949,1745269209029,-1221.11,0.00054246,120]
[358568950,1745269209068,-525.77,0.00054246,120]
[358568951,1745269209108,-1317.58,0.00054246,120]
[358568952,1745269209147,-797.08,0.00054246,120]
[358568953,1745269209186,-1174.25,0.00054246,120]
[358568954,1745269209226,-672.04,0.00054246,120]
[358568955,1745269209266,-690.93,0.00054246,120]
[358568956,1745269209306,-593.3,0.00054246,120]
[358568957,1745269209345,-1385.14,0.00054246,120]
[358568958,1745269209384,-831.53,0.00054246,120]
[358568959,1745269209423,-772.47,0.00054246,120]
[358568960,1745269209461,-1494.4,0.00054246,120]
[358568961,1745269209501,-623.44,0.00054246,120]
[358568962,1745269209540,-847.59,0.00054246,120]
[358568963,1745269209580,-1480.63,0.00054246,120]
[358568964,1745269209619,-594.54,0.00054246,120]
[358568965,1745269209658,-881.75,0.00054246,120]
[358568966,1745269209696,-1003.48,0.00054246,120]
[358568967,1745269209735,-583.01,0.00054246,120]
[358568968,1745269209773,-1222.77,0.00054246,120]
[358568969,1745269209812,-546.21,0.00054246,120]
[358568970,1745269209850,-500.0,0.00054246,120]
[358568971,1745269209888,-706.63,0.00054246,120]
[358568972,1745269209925,-540.95,0.00054246,120]
[358568973,1745269209963,-956.86,0.00054246,120]
[358568974,1745269210001,-884.65,0.00054246,120]
[358568975,1745269210039,-863.91,0.00054246,120]
[358568976,1745269210078,-826.96,0.00054246,120]
[358568977,1745269210145,-786.17,0.00054246,120]
[358568978,1745269210212,-814.8,0.00054246,120]
[358568979,1745269210285,-514.13,0.00054246,120]
[358568980,1745269210356,-1290.34,0.00054246,120]
[358568981,1745269210427,-743.09,0.00054246,120]
[358568982,1745269210490,-1183.26,0.00054246,120]
[358568983,1745269210562,-579.09,0.00054246,120]
[358568984,1745269210632,-1099.51,0.00054246,120]
[358568985,1745269210700,-947.57,0.00054246,120]
[358568986,1745269210761,-904.67,0.00054246,120]
[358568987,1745269210824,-1533.1,0.00054246,120]
[358568988,1745269210883,-717.75,0.00054246,120]
[358568989,1745269210941,-511.66,0.00054246,120]
[358568990,1745269211011,-729.68,0.00054246,120]
[358568991,1745269211077,-601.4,0.00054246,120]
[358568992,1745269211139,-779.43,0.00054246,120]
[358568993,1745269211199,-1738.61,0.00054246,120]
[358568994,1745269211260,-706.3,0.00054246,120]
[358568995,1745269211321,-408.29,0.00054246,120]
[358568996,1745269211379,-612.25,0.00054246,120]
[358568997,1745269211437,-1772.65,0.00054246,120]
[358568998,1745269211495,-501.84,0.00054246,120]
[358568999,1745269211552,-1438.84,0.00054246,120]
[358569000,1745269211592,-927.9,0.00054246,120]
[358569001,1745269211630,-1567.41,0.00054246,120]
[358569002,1745269211670,-765.04,0.00054246,120]
[358569003,1745269211709,-1636.3,0.00054246,120]
[358569004,1745269211747,-1871.84,0.00054246,120]
[358569005,1745269211786,-500.0,0.00054246,120]
[358569006,1745269211824,-658.02,0.00054246,120]
[358569007,1745269211864,-1100.31,0.00054246,120]
[358569008,1745269211903,-1543.41,0.00054246,120]
[358569009,1745269211942,-261.4,0.00054246,120]
[358569010,1745269211979,-2906.42,0.00054246,120]
[358569011,1745269212017,-621.72,0.00054246,120]
[358569012,1745269212600,-616.38,0.00054246,120]
[358569013,1745269212675,-829.97,0.00054246,120]
[358569014,1745269212714,-506.68,0.00054246,120]
[358569015,1745269212753,-1256.12,0.00054246,120]
[358569016,1745269212791,-1178.06,0.00054246,120]
[358569017,1745269212828,-1134.03,0.00054246,120]
[358569018,1745269212865,-585.8,0.00054246,120]
[358569019,1745269212903,-821.12,0.00054246,120]
[358569020,1745269212943,-822.93,0.00054246,120]
[358569021,1745269212982,-1335.52,0.00054246,120]
[358569022,1745269213021,-1048.75,0.00054246,120]
[358569023,1745269213061,-1275.11,0.00054246,120]
[358569024,1745269213100,-816.95,0.00054246,120]
[358569025,1745269213142,-1659.14,0.00054246,120]
[358569026,1745269213181,-500.0,0.00054246,120]
[358569027,1745269213218,-583.75,0.00054246,120]
[358569028,1745269213256,-1122.27,0.00054246,120]
[358569029,1745269213293,-1948.41,0.00054246,120]
[358569030,1745269213329,-655.96,0.00054246,120]
[358569031,1745269213369,-762.02,0.00054246,120]
[358569032,1745269213407,-720.4,0.00054246,120]
[358569033,1745269213444,-500.0,0.00054246,120]
[358569034,1745269213481,-941.01,0.00054246,120]
[358569035,1745269213517,-645.89,0.00054246,120]
[358569036,1745269213555,-1158.5,0.00054246,120]
[358569037,1745269213591,-500.0,0.00054246,120]
[358569038,1745269213629,-973.17,0.00054246,120]
[358569039,1745269213665,-901.45,0.00054246,120]
[358569040,1745269213701,-997.67,0.00054246,120]
[358569041,1745269213738,-783.77,0.00054246,120]
[358569042,1745269213776,-3240.43,0.00054246,120]
[358569043,1745269213814,-1596.74,0.00054246,120]
[358569044,1745269213851,-919.49,0.00054246,120]
[358569045,1745269213888,-804.59,0.00054246,120]
[358569046,1745269213926,-877.83,0.00054246,120]
[358569047,1745269213964,-1289.89,0.00054246,120]
[358569048,1745269214002,-1393.67,0.00054246,120]
[358569049,1745269214040,-864.57,0.00054246,120]
[358569050,1745269214079,-1022.68,0.00054246,120]
[358569051,1745269214117,-1668.15,0.00054246,120]
[358569052,1745269214157,-859.56,0.00054246,120]
[358569053,1745269214196,-1952.74,0.00054246,120]
[358569054,1745269214236,-511.37,0.00054246,120]
[358569055,1745269214276,-662.83,0.00054246,120]
[358569056,1745269214316,-574.9,0.00054246,120]
[358569057,1745269214356,-1348.97,0.00054246,120]
[358569058,1745269214399,-561.55,0.00054246,120]
[358569059,1745269214437,-996.82,0.00054246,120]
[358569060,1745269214478,-1058.05,0.00054246,120]
[358569061,1745269214518,-2581.69,0.00054246,120]
[358569062,1745269214559,-500.0,0.00054246,120]
[358569063,1745269214598,-1410.47,0.00054246,120]
[358569064,1745269214636,-508.66,0.00054246,120]
[358569065,1745269214676,-743.94,0.00054246,120]
[358569066,1745269214714,-1494.95,0.00054246,120]
[358569067,1745269214752,-955.73,0.00054246,120]
[358569068,1745269214791,-1053.78,0.00054246,120]
[358569069,1745269214828,-1074.12,0.00054246,120]
[358569070,1745269214866,-1020.13,0.00054246,120]
[358569071,1745269214904,-674.89,0.00054246,120]
[358569072,1745269214945,-1637.73,0.00054246,120]
[358569073,1745269214983,-889.4,0.00054246,120]
[358569074,1745269215022,-500.0,0.00054246,120]
[358569075,1745269215062,-1570.7,0.00054246,120]
[358569076,1745269215106,-2220.57,0.00054246,120]
[358569077,1745269215148,-2278.19,0.00054246,120]
[358569078,1745269215188,-1605.45,0.00054246,120]
[358569079,1745269215227,-1339.26,0.00054246,120]
[358569080,1745269215265,-500.0,0.00054246,120]
[358569081,1745269215302,-1056.06,0.00054246,120]
[358569082,1745269215341,-2998.83,0.00054246,120]
[358569083,1745269215379,-831.47,0.00054246,120]
[358569084,1745269215418,-2289.63,0.00054246,120]
[358569085,1745269215456,-668.65,0.00054246,60]
[358569086,1745269215496,-1451.0,0.00054246,120]
[358569087,1745269215534,-1561.76,0.00054246,120]
[358569088,1745269215574,-891.42,0.00054246,120]
[358569089,1745269215615,-578.81,0.00054246,120]
[358569090,1745269215656,-2000.0,0.00054321,31]
[358569091,1745269215695,-170.0,0.0005437,120]
[358569092,1745269215735,-174.0,0.0005437,120]
[358569093,1745269215772,-3000.0,0.0005444,40]
[358569094,1745269215810,-150.0,0.00054467,31]
[358569095,1745269215848,-176.8979223,0.00054467,31]
[358569096,1745269216081,-150.0,0.00054467,31]
[358569097,1745269216121,-500.0,0.00054467,31]
[358569098,1745269216158,-610.28831672,0.00054467,31]
[358569099,1745269216197,-250.0,0.00054467,31]
[358569100,1745269216235,-150.0,0.00054467,31]
[358569101,1745269216272,-150.0,0.00054467,31]
[358569102,1745269216309,-150.0,0.00054467,31]
[358569103,1745269216346,-244.0,0.00054467,31]
[358569104,1745269216383,-250.0,0.00054467,31]
[358569105,1745269216420,-500.0,0.00054467,31]
[358569106,1745269216457,-500.0,0.00054467,31]
[358569107,1745269216497,-500.0,0.00054467,31]
[358569108,1745269216536,-319.46056612,0.00054467,31]
[358569109,1745269216576,-150.0,0.00054467,31]
[358569110,1745269216615,-150.0,0.00054467,31]
[358569111,1745269216653,-239.86381959,0.00054467,31]
[358569112,1745269216695,-500.0,0.00054521,120]
[358569113,1745269216737,-500.0,0.00054521,120]
[358569114,1745269216779,-500.0,0.00054521,120]
[358569115,1745269216821,-528.67540095,0.00054521,120]
[358569116,1745269216862,-500.0,0.00054521,120]
[358569117,1745269216906,-500.0,0.00054521,120]
[358569118,1745269216949,-500.0,0.00054521,120]
[358569119,1745269216993,-500.0,0.00054521,120]
[358569120,1745269217036,-500.0,0.00054521,120]
[358569121,1745269217081,-500.0,0.00054521,120]
[358569122,1745269217125,-500.0,0.00054521,120]
[358569123,1745269217169,-500.0,0.00054521,120]
[358569124,1745269217211,-500.0,0.00054521,120]
[358569125,1745269217254,-500.0,0.00054521,120]
[358569126,1745269217296,-500.0,0.00054521,120]
[358569127,1745269217339,-500.0,0.00054521,120]
[358569128,1745269217382,-500.0,0.00054521,120]
[358569129,1745269217426,-500.0,0.00054521,120]
[358569130,1745269217470,-500.0,0.00054521,120]
[358569131,1745269217512,-500.0,0.00054521,120]
[358569132,1745269217554,-500.0,0.00054521,120]
[358569133,1745269217597,-500.0,0.00054521,120]
[358569134,1745269217638,-500.0,0.00054521,120]
[358569135,1745269217679,-500.0,0.00054521,120]
[358569136,1745269217719,-500.0,0.00054521,120]
[358569137,1745269217761,-500.0,0.00054521,120]
[358569138,1745269217801,-500.0,0.00054521,120]
[358569139,1745269217843,-500.0,0.00054521,120]
[358569140,1745269217885,-500.0,0.00054521,120]
[358569141,1745269217927,-500.0,0.00054521,120]
[358569142,1745269217969,-500.0,0.00054521,120]
[358569143,1745269218011,-233.57593555,0.00054521,120]
[358569144,1745269218054,-300.0,0.00054521,120]
[358569145,1745269218098,-500.0,0.00054521,120]
[358569146,1745269218142,-200.0,0.00054521,120]
[358569147,1745269218183,-1455.56680441,0.00054685,31]
[358569148,1745269218223,-10000.0,0.000547,120]
[358569149,1745269218264,-500.0,0.00054767,120]
[358569150,1745269218306,-404.0,0.00054767,120]
[358569151,1745269218348,-566.30084486,0.00054767,31]
[358569152,1745269218387,-529.42684385,0.0005479,120]
[358569153,1745269218429,-629.509786,0.00054794,120]
[358569154,1745269218470,-571.892923,0.00054794,120]
[358569155,1745269218511,-1890.77893,0.00054794,120]
[358569156,1745269218552,-847.27,0.00054794,120]
[358569157,1745269218592,-980.71,0.00054794,120]
[358569158,1745269218632,-2474.26,0.00054794,120]
[358569159,1745269218672,-2340.33,0.00054794,120]
[358569160,1745269218712,-710.84,0.00054794,120]
[358569161,1745269218751,-519.36,0.00054794,120]
[358569162,1745269218792,-858.69,0.00054794,120]
[358569163,1745269218834,-1419.16,0.00054794,120]
[358569164,1745269218876,-500.0,0.00054794,120]
[358569165,1745269218916,-1001.34,0.00054794,120]
[358569166,1745269218954,-1000.0,0.00054794,120]
[358569167,1745269218995,-1000.0,0.00054794,120]
[358569168,1745269219036,-1000.0,0.00054794,120]
[358569169,1745269219078,-1000.0,0.00054794,120]
[358569170,1745269219119,-1000.0,0.00054794,120]
[358569171,1745269219159,-1000.0,0.00054794,120]
[358569172,1745269219199,-1061.62857226,0.00054794,120]
[358569173,1745269219240,-500.0,0.00054794,120]
[358569174,1745269219280,-604.48,0.00054794,120]
[358569175,1745269219321,-1198.33,0.00054794,120]
[358569176,1745269219364,-951.19,0.00054794,120]
[358569177,1745269219407,-1221.11,0.00054794,120]
[358569178,1745269219448,-525.77,0.00054794,120]
[358569179,1745269219488,-1317.58,0.00054794,120]
[358569180,1745269219528,-797.08,0.00054794,120]
[358569181,1745269219567,-1174.25,0.00054794,120]
[358569182,1745269219606,-672.04,0.00054794,120]
[358569183,1745269219648,-690.93,0.00054794,120]
[358569184,1745269219689,-568.75,0.00054794,120]
[358569185,1745269219732,-568.75,0.00054794,120]
[358569186,1745269219773,-568.75,0.00054794,120]
[358569187,1745269219814,-568.75,0.00054794,120]
[358569188,1745269219853,-568.75,0.00054794,120]
[358569189,1745269219895,-568.75,0.00054794,120]
[358569190,1745269219934,-568.75,0.00054794,120]
[358569191,1745269220185,-568.75,0.00054794,120]
[358569192,1745269220230,-568.75,0.00054794,120]
[358569193,1745269220272,-568.75,0.00054794,120]
[358569194,1745269220312,-568.75,0.00054794,120]
[358569195,1745269220351,-568.75,0.00054794,120]
[358569196,1745269220392,-593.3,0.00054794,120]
[358569197,1745269220430,-568.75,0.00054794,120]
[358569198,1745269220468,-568.75,0.00054794,120]
[358569199,1745269220506,-568.75,0.00054794,120]
[358569200,1745269220544,-568.75,0.00054794,120]
[358569201,1745269220582,-568.75,0.00054794,120]
[358569202,1745269220620,-568.75,0.00054794,120]
[358569203,1745269220657,-568.75,0.00054794,120]
[358569204,1745269220694,-568.75,0.00054794,120]
[358569205,1745269220730,-568.75,0.00054794,120]
[358569206,1745269220766,-568.75,0.00054794,120]
[358569207,1745269220803,-568.75,0.00054794,120]
[358569208,1745269220839,-568.76578967,0.00054794,120]
[358569209,1745269220877,-1385.14,0.00054794,120]
[358569210,1745269220916,-831.53,0.00054794,120]
[358569211,1745269220955,-772.47,0.00054794,120]
[358569212,1745269220995,-1494.4,0.00054794,120]
[358569213,1745269221036,-623.44,0.00054794,120]
[358569214,1745269221079,-847.59,0.00054794,120]
[358569215,1745269221119,-1480.63,0.00054794,120]
[358569216,1745269221159,-594.54,0.00054794,120]
[358569217,1745269221203,-881.75,0.00054794,120]
[358569218,1745269221244,-1003.48,0.00054794,120]
[358569219,1745269221286,-583.01,0.00054794,120]
[358569220,1745269221331,-1222.77,0.00054794,120]
[358569221,1745269221377,-546.21,0.00054794,120]
[358569222,1745269221422,-542.75,0.00054794,120]
[358569223,1745269221465,-706.63,0.00054794,120]
[358569224,1745269221509,-540.95,0.00054794,120]
[358569225,1745269221549,-956.86,0.00054794,120]
[358569226,1745269221590,-884.65,0.00054794,120]
[358569227,1745269221631,-863.91,0.00054794,120]
[358569228,1745269221672,-826.96,0.00054794,120]
[358569229,1745269221712,-786.17,0.00054794,120]
[358569230,1745269221759,-814.8,0.00054794,120]
[358569231,1745269221798,-514.13,0.00054794,120]
[358569232,1745269221835,-1290.34,0.00054794,120]
[358569233,1745269221872,-743.09,0.00054794,120]
[358569234,1745269221909,-1183.26,0.00054794,120]
[358569235,1745269221944,-579.09,0.00054794,120]
[358569236,1745269221982,-947.57,0.00054794,120]
[358569237,1745269222019,-1099.51,0.00054794,120]
[358569238,1745269222055,-904.67,0.00054794,120]
[358569239,1745269222092,-1533.1,0.00054794,120]
[358569240,1745269222130,-717.75,0.00054794,120]
[358569241,1745269222168,-729.68,0.00054794,120]
[358569242,1745269222206,-601.4,0.00054794,120]
[358569243,1745269222244,-779.43,0.00054794,120]
[358569244,1745269222282,-1738.61,0.00054794,120]
[358569245,1745269222319,-706.3,0.00054794,120]
[358569246,1745269222355,-612.25,0.00054794,120]
[358569247,1745269222393,-1772.65,0.00054794,120]
[358569248,1745269222432,-501.84,0.00054794,120]
[358569249,1745269222473,-1438.84,0.00054794,120]
[358569250,1745269222510,-927.9,0.00054794,120]
[358569251,1745269222547,-1567.41,0.00054794,120]
[358569252,1745269222584,-765.04,0.00054794,120]
[358569253,1745269222622,-1636.3,0.00054794,120]
[358569254,1745269222659,-1871.84,0.00054794,120]
[358569255,1745269222695,-500.0,0.00054794,120]
[358569256,1745269222731,-658.02,0.00054794,120]
[358569257,1745269222768,-1100.31,0.00054794,120]
[358569258,1745269222805,-1543.41,0.00054794,120]
[358569259,1745269222840,-2906.42,0.00054794,120]
[358569260,1745269222876,-621.72,0.00054794,120]
[358569261,1745269222913,-616.38,0.00054794,120]
[358569262,1745269222949,-829.97,0.00054794,120]
[358569263,1745269222986,-506.68,0.00054794,120]
[358569264,1745269223022,-1256.12,0.00054794,120]
[358569265,1745269223060,-1178.06,0.00054794,120]
[358569266,1745269223097,-1134.03,0.00054794,120]
[358569267,1745269223133,-585.8,0.00054794,120]
[358569268,1745269223171,-821.12,0.00054794,120]
[358569269,1745269223210,-822.93,0.00054794,120]
[358569270,1745269223247,-1335.52,0.00054794,120]
[358569271,1745269223285,-1048.75,0.00054794,120]
[358569272,1745269223322,-1275.11,0.00054794,120]
[358569273,1745269223359,-816.95,0.00054794,120]
[358569274,1745269223399,-1659.14,0.00054794,120]
[358569275,1745269223446,-500.0,0.00054794,120]
[358569276,1745269223484,-583.75,0.00054794,120]
[358569277,1745269223523,-1122.27,0.00054794,120]
[358569278,1745269223562,-1948.41,0.00054794,120]
[358569279,1745269223602,-736.46,0.00054794,120]
[358569280,1745269223641,-736.46,0.00054794,120]